Cogmind - Beta 11 @@@ ROGUE MODE // 2022.04.01 @ 18:41:42 Player: Alexbot Result: Destroyed by YI-UF0 with YI-UF0's Doublenader Performance ------------- Evolutions (0) 0 Regions Visited (4) 800 Robots Destroyed (27) 135 Value Destroyed (396) 396 Prototype IDs (32) 640 Alien Tech Used (0) 0 Bonus (300) 300 TOTAL SCORE: 2271 Bonus ------- Aligned with FarCom 300 Cogmind --------- Core Integrity 0/250 Matter 222/300 Energy 242/310 System Corruption 38% Temperature Cool (0) Movement Rolling (130) Ox2 Location -9/Mines Parts ------- > --- POWER (1) -------- Heavy Deuterium Engine > --- PROPULSION (2) --- Compact Wheel Compact Wheel > --- UTILITY (2) ------ High-capacity Storage Unit Light Armor Plating > --- WEAPON (2) ------- Latent Energy Streamer Autogun > --- INVENTORY (20) --- Light Neutrino Core Light Treads Light Treads Advanced Myomer Leg Modified TNC Advanced Transmission Jammer Hacking Suite AS-neutralizer No. 17b Pulse Rifle Ion Cannon Autogun Autogun Minigun Bore Cannon Grenade Launcher Datajack Great Maul Longsword +1 Deploy-a-Sentry Peak State ------------ > --- POWER ------------ Improved Ion Engine > --- PROPULSION ------- Light Treads Light Treads > --- UTILITY ---------- High-capacity Storage Unit Light Armor Plating > --- WEAPON ----------- Latent Energy Streamer Longsword +1 > --- INVENTORY -------- Aluminum Leg Carbon-fiber Leg Advanced Myomer Leg Compact Wheel Compact Wheel Modified TNC Light Armor Plating Hacking Suite AS-neutralizer No. 17b Pulse Rifle Ion Cannon Autogun Autogun Autogun Autogun Minigun Bore Cannon Grenade Launcher Datajack Great Maul [Rating: 29] Favorites ----------- Power Improved Ion Engine Engine Improved Ion Engine Propulsion Aluminum Leg Treads Light Treads Leg Aluminum Leg Wheel Compact Wheel Utility High-capacity Storage Unit Storage High-capacity Storage Unit Processor Targeting Computer Protection Light Armor Plating Weapon Light Assault Rifle Energy Gun Pulse Rifle Energy Cannon Latent Energy Streamer Ballistic Gun Light Assault Rifle Slashing Weapon Longsword +1 Special Melee Weapon Datajack Build | -11 -10 -10 -10 -9 ------- Run | Scr Mat Min Exi Min Slots Evolved . | . . . . . Power . | . . . . . Propulsion . | . . . . . Utility . | . . . . . Weapon . | . . . . . Parts Attached 24 | . 3 2 13 6 Power 3 | . 1 . 2 . Engine 3 | . 1 . 2 . Core . | . . . . . Reactor . | . . . . . Propulsion 5 | . . 1 2 2 Treads 2 | . . . 2 . Leg 1 | . . 1 . . Wheel 2 | . . . . 2 Hover . | . . . . . Flight . | . . . . . Utility 5 | . 2 . 2 1 Device . | . . . . . Storage 1 | . 1 . . . Processor 1 | . 1 . . . Hackware . | . . . . . Protection 3 | . . . 2 1 Artifact . | . . . . . Weapon 11 | . . 1 7 3 Energy Gun 1 | . . 1 . . Energy Cannon 3 | . . . 1 2 Ballistic Gun 4 | . . . 3 1 Ballistic Cannon . | . . . . . Launcher . | . . . . . Special Weapon . | . . . . . Impact Weapon . | . . . . . Slashing Weapon 2 | . . . 2 . Piercing Weapon . | . . . . . Special Melee Weapon 1 | . . . 1 . Unidentified Prototypes 1 | . . . 1 . Parts Lost 2 | . . . 2 . Power 1 | . . . 1 . Propulsion . | . . . . . Utility 1 | . . . 1 . Weapon . | . . . . . Highest Loss Streak 2 | . . . 2 . To Critical Strikes . | . . . . . Average Slot Usage (%) 96 | . 91 100 99 100 Engine 13 | . 14 14 13 14 Treads 9 | . . . 19 28 Leg 18 | . 28 28 8 . Storage 14 | . 14 14 14 14 Processor 6 | . 5 14 4 . Protection 4 | . . . 9 14 Energy Gun 4 | . . 10 4 . Energy Cannon 2 | . . . 4 11 Ballistic Gun 18 | . 28 17 11 16 Slashing Weapon 1 | . . . 3 . Special Melee Weapon 1 | . . . 3 . Naked Turns . | . . . . . Heaviest Build 67 | 13 53 51 63 67 Greatest Support 40 | 20 20 25 40 40 Greatest Overweight (x) 2 | . 2 2 2 2 Average Overweight (x) 1 | . 1 1 1 1 Largest Inventory Capacity 20 | 8 20 20 20 20 Average Capacity 19 | 8 19 20 20 20 Most Carried 20 | 6 19 20 20 20 Average Carried 16 | 6 11 19 19 19 Final Capacity 20 | 8 20 20 20 20 Final Carried 20 | 6 17 20 20 19 Class Distribution -------------------- 100% | Mutant Dominant Class ---------------- Mutant | -10/Materials Mutant | -10/Mines Mutant | -10/Exiles Mutant | -9/Mines Resources | -11 -10 -10 -10 -9 ----------- Run | Scr Mat Min Exi Min Matter Collected 637 | 200 146 65 180 46 Remotely . | . . . . . Salvage Created 973 | . 201 154 445 173 Parts 73 | . 22 6 41 4 Haulers Intercepted . | . . . . . Recyclers Shooed . | . . . . . Parts Field Recycled . | . . . . . Retrieved Matter . | . . . . . Parts Self-Destructed . | . . . . . Prevented . | . . . . . Kills | -11 -10 -10 -10 -9 ------- Run | Scr Mat Min Exi Min Combat Hostiles Destroyed 27 | . 5 6 7 9 Melee 7 | . . . 7 . Guns 14 | . 5 6 . 3 AOE 6 | . . . . 6 Classes Destroyed 9 | . 5 . 3 1 Worker 1 | . 1 . . . Tunneler 2 | . . . . 2 Operator 2 | . 2 . . . Turret 1 | . . . 1 . Watcher 2 | . 2 . . . Swarmer 6 | . 3 3 . . Grunt 5 | . 2 3 . . Zionite 5 | . . . 5 . Assembled 15 | . . . 6 9 Best Kill Streak 9 | . 3 3 6 9 Combat Bots Only 9 | . 3 3 6 9 Max Kills in Single Turn 6 | . 1 1 3 6 Gunslinging . | . . . . . Exploded 6 | . . . . 6 Melee 1 | . . . 1 . Uniques/NPCs Destroyed 4 | . . . 4 . 8R-AWN (-10/Exiles) EX-BIN (-10/Exiles) EX-HEX (-10/Exiles) EX-DEC (-10/Exiles) Combat | -11 -10 -10 -10 -9 -------- Run | Scr Mat Min Exi Min Damage Taken 1323 | . 136 265 560 362 Core 256 | . 19 70 124 43 Absorbed by Shields . | . . . . . Core Remaining (%) 100 | 100 . . . . Volleys Fired 73 | . 35 19 14 5 Largest 2 | . 2 2 2 2 Hottest 83 | . 40 83 60 60 Shots Fired 126 | . 70 27 19 10 Gun 113 | . 70 27 8 8 Cannon 13 | . . . 11 2 Launcher . | . . . . . Special . | . . . . . Kinetic 99 | . 70 13 8 8 Thermal 14 | . . 14 . . Explosive . | . . . . . Electromagnetic 13 | . . . 11 2 Robot Hit Streak 8 | . 8 7 4 6 Robot Miss Streak 4 | . 4 1 3 2 Penetration Max . | . . . . . Secondary Targets . | . . . . . Shots Hit Robots 99 | . 34 18 40 7 Core Hits 68 | . 17 7 32 12 Critical Kills . | . . . . . Critical Parts Destroyed 2 | . 2 . . . Critical Strikes 3 | . 2 1 . . Burn 1 | . . 1 . . Destroy 2 | . 2 . . . Melee Attacks 31 | . . . 31 . Impact . | . . . . . Slashing 30 | . . . 30 . Piercing . | . . . . . Sneak Attacks 1 | . . . 1 . Combat Hostiles . | . . . . . Follow-up Attacks . | . . . . . Damage Inflicted 3707 | . 361 273 2263 810 Guns 796 | . 361 273 67 95 Cannons 17 | . . . 7 10 Explosions 1524 | . . . 819 705 Melee 1370 | . . . 1370 . Ramming . | . . . . . Kinetic 588 | . 361 65 67 95 Thermal 256 | . . 208 48 . Explosive . | . . . . . Electromagnetic 1493 | . . . 778 715 Impact . | . . . . . Slashing 1370 | . . . 1370 . Piercing . | . . . . . Highest Corruption 38 | . . . 33 38 Average Corruption 25 | . . . 22 35 Corruption Purged . | . . . . . Corruption Blocked . | . . . . . Effects 39 | . . . 26 13 Message Errors 8 | . . . 4 4 Matter Fused 8 | . . . 6 2 Heat Flow Errors 2 | . . . 1 1 Energy Discharges 12 | . . . 9 3 Data Loss (minor) 6 | . . . 4 2 Data Loss (major) 1 | . . . 1 . Misfires 2 | . . . 1 1 Overload Shots . | . . . . . Overflow Damage 85 | . . . 85 . Projectiles . | . . . . . Explosions 4 | . . . 4 . Melee 81 | . . . 81 . Knockbacks . | . . . . . Impact . | . . . . . Kinetic . | . . . . . Secondary . | . . . . . Self-Inflicted Damage 56 | . . . . 56 Shots 1 | . . . . 1 Rammed . | . . . . . Targets Rammed . | . . . . . Kicked . | . . . . . Crushed . | . . . . . Highest Temperature 336 | . 12 336 141 88 Average Temperature 56 | . 4 113 28 29 Received Heat Transfer 191 | . 36 126 29 . Effects 1 | . . 1 . . Damage (minor) 1 | . . 1 . . Siege Activations . | . . . . . Robots Corrupted 1 | . . . 1 . Combat Hostiles . | . . . . . Parts Fried 13 | . . . 13 . Impact Corruptions . | . . . . . Robots Melted . | . . . . . Combat Hostiles . | . . . . . Parts Melted 1 | . . . 1 . Heat Transferred 568 | . . 518 50 . Parts Sabotaged . | . . . . . Parts Stolen . | . . . . . Parts Stripped . | . . . . . Power Chain Reactions 1 | . . . 1 . Missiles Intercepted . | . . . . . Latent Energy Used 2514 | . . . 2200 314 LE Corruption 38 | . . . 33 5 Alert | -11 -10 -10 -10 -9 ------- Run | Scr Mat Min Exi Min Peak Influence 107 | . 95 107 . 106 Initial 2 | . . 2 . . Average 47 | . 41 54 . 58 Maximum Alert Level . | . . . . . Low Security (%) 100 | 100 100 100 . 100 Level 1 . | . . . . . Level 2 . | . . . . . Level 3 . | . . . . . Level 4 . | . . . . . Level 5 . | . . . . . High Security . | . . . . . Max Security . | . . . . . Squads Dispatched 5 | . 4 1 . . Investigation 2 | . 1 1 . . Extermination . | . . . . . Reinforcement 3 | . 3 . . . Assault . | . . . . . Garrison . | . . . . . Intercept . | . . . . . Searches Triggered . | . . . . . Construction Impeded . | . . . . . Haulers Reinforced . | . . . . . Active Scanning Responses . | . . . . . Cargo Convoy Interrupts . | . . . . . Stealth | -11 -10 -10 -10 -9 --------- Run | Scr Mat Min Exi Min Distress Signals . | . . . . . Communications Jammed . | . . . . . Distress Signals . | . . . . . Times Spotted 73 | . 17 8 36 12 Peak Tracking Total 11 | . 3 2 9 11 Tactical Retreats 17 | . . . 16 1 Traps | -11 -10 -10 -10 -9 ------- Run | Scr Mat Min Exi Min Traps Triggered 2 | . 2 . . . Indirectly . | . . . . . Trap Hack Attempts . | . . . . . Triggered . | . . . . . Disarmed . | . . . . . Reprogrammed . | . . . . . Reused . | . . . . . Traps Extracted . | . . . . . Installed . | . . . . . Triggered . | . . . . . Machines | -11 -10 -10 -10 -9 ---------- Run | Scr Mat Min Exi Min Machines Disabled 21 | . . . 19 2 Max in Single Turn 6 | . . . 6 2 Machines Sabotaged . | . . . . . Garrisons Compromised . | . . . . . Overloaded Fab Kills . | . . . . . Hacking | -11 -10 -10 -10 -9 --------- Run | Scr Mat Min Exi Min Machines Accessed 4 | . 1 1 2 . Terminals 1 | . 1 . . . Fabricators . | . . . . . Repair Stations . | . . . . . Recycling Units . | . . . . . Scanalyzers . | . . . . . Garrison Access . | . . . . . Total Hacks 5 | . 2 1 2 . Successful 4 | . 1 1 2 . Failed 1 | . 1 . . . Catastrophic . | . . . . . Database Lockouts . | . . . . . Manual 3 | . 2 . 1 . Terminals 2 | . 2 . . . Fabricators . | . . . . . Repair Stations . | . . . . . Recycling Units . | . . . . . Scanalyzers . | . . . . . Garrison Access . | . . . . . Terminal Hacks 4 | . 1 1 2 . Record 1 | . . . 1 . Open Door 1 | . . 1 . . Branch Access Points 1 | . 1 . . . EX-Prototype ID Bank 1 | . . . 1 . Fabricator Hacks . | . . . . . Repair Station Hacks . | . . . . . Recycling Unit Hacks . | . . . . . Scanalyzer . | . . . . . Garrison Access Hacks . | . . . . . Unauthorized Hacks . | . . . . . Terminals . | . . . . . Fabricators . | . . . . . Repair Stations . | . . . . . Recycling Units . | . . . . . Scanalyzers . | . . . . . Garrison Access . | . . . . . Data Cores Recovered . | . . . . . Used . | . . . . . Hacking Detections 1 | . 1 . . . Full Trace Events . | . . . . . Feedback Events . | . . . . . Feedback Blocked . | . . . . . Robot Schematics Acquired . | . . . . . Robots Built . | . . . . . Authchips . | . . . . . Time . | . . . . . Total Robot Build Rating . | . . . . . Part Schematics Acquired . | . . . . . Parts Built . | . . . . . Authchips . | . . . . . Time . | . . . . . Total Part Build Rating . | . . . . . Parts Repaired . | . . . . . Time . | . . . . . Parts Recycled . | . . . . . Recycled Matter . | . . . . . Retrieved Matter . | . . . . . Retrieved Components . | . . . . . Parts Scanalyzed . | . . . . . Part Schematics Acquired . | . . . . . Parts Damaged . | . . . . . Bothacking | -11 -10 -10 -10 -9 ------------ Run | Scr Mat Min Exi Min Used RIF Installer . | . . . . . Robots Hacked 1 | . . . 1 . Non-combat . | . . . . . Combat 1 | . . . 1 . Robot Hacks Applied 1 | . . . 1 . parse_system 1 | . . . 1 . Relay Couplers Released . | . . . . . Fabnet Peak Effective % . | . . . . . Robots Rewired . | . . . . . Allies Hacked . | . . . . . Hacks Repelled . | . . . . . Allies | -11 -10 -10 -10 -9 -------- Run | Scr Mat Min Exi Min Total Allies . | . . . . . Largest Group . | . . . . . Highest-Rated Group . | . . . . . Highest-Rated Ally . | . . . . . Total Orders . | . . . . . Ally Attacks . | . . . . . Total Damage . | . . . . . Kills . | . . . . . Allies Corrupted . | . . . . . Allies Melted . | . . . . . Intel | -11 -10 -10 -10 -9 ------- Run | Scr Mat Min Exi Min Robot Analysis Total . | . . . . . Derelict Logs Recovered . | . . . . . Drone Launches . | . . . . . Drone Recoveries . | . . . . . Exploration | -11 -10 -10 -10 -9 ------------- Run | Scr Mat Min Exi Min Turns Passed 3847 | 2 1317 852 1441 235 Spaces Moved 1385 | 2 491 305 497 90 Core . | . . . . . Treads 422 | . . . 335 87 Legs 960 | 2 491 305 162 . Wheels 3 | . . . . 3 Hover . | . . . . . Flight . | . . . . . Fastest Speed 120 | 120 120 190 240 130 Average Speed 248 | 120 244 259 246 236 Slowest Speed 260 | 120 260 260 260 240 Overloaded Moves . | . . . . . Propulsion Burnouts . | . . . . . Robots Hopped . | . . . . . Cave-ins Triggered . | . . . . . Exploration Rate (%) 48 | 1 64 58 86 33 Regions Visited 4 Branch Regions 3 Pre-discovered Areas 1 | . . . 1 . Known Exits Taken 1 | . 1 . . . Unknown Exits Taken 3 | 1 . 1 1 . Scrap Searched 1 | . . 1 . . Spaces Dug 16 | . . . . 16 Terrain Destroyed 66 | . . . 40 26 Melee . | . . . . . Projectile . | . . . . . AOE 66 | . . . 40 26 Terrain Rammed . | . . . . . Walls Destroyed . | . . . . . Machines Disabled . | . . . . . Actions | -11 -10 -10 -10 -9 --------- Run | Scr Mat Min Exi Min Total 1655 | 1 544 343 665 102 Wait 101 | . . 5 96 . Move 1381 | 1 490 304 496 90 Hop . | . . . . . Pick Up 27 | . 12 7 8 . Fast Attach 4 | . 2 1 1 . Attach 3 | . . . 3 . Detach 2 | . 1 . 1 . Swap 17 | . 1 1 9 6 Drop 16 | . 3 6 6 1 Fire 73 | . 35 19 14 5 Melee 31 | . . . 31 . Ram . | . . . . . Kick . | . . . . . Crush . | . . . . . Escape Stasis . | . . . . . Rewire . | . . . . . Trap . | . . . . . Miscellaneous . | . . . . . Route ------- -11/Scrapyard -10/Materials (discovered 3 exits: [*Mat x2] / *Min) -10/Mines (discovered 2 exits: [*Mat] / *Exi) -10/Exiles -9/Mines (discovered 1 exit: [*Mat]) History --------- Turn | Location | Event 1 | -11/Scrapyard | Discovered new exit (range 1) 3 | -11/Scrapyard | Entered Materials 309 | -10/Materials | Build established: Mutant 826 | -10/Materials | Discovered new exit (range 4) 1102 | -10/Materials | Identified exit to Mines 1220 | -10/Materials | Discovered new exit (range 13) 1320 | -10/Materials | Entered Mines 1365 | -10/Mines | Joined a pair of Derelicts in attacking an 0b10 outpost 1524 | -10/Mines | Met a Derelict shopkeep closing up shop 1647 | -10/Mines | A weapon hastily lodged in a ceiling crevice suddenly fell to the ground 1753 | -10/Mines | Found a hidden stash of uninstalled traps 1883 | -10/Mines | Discovered new exit (range 8) 2161 | -10/Mines | Deemed a non-threat by the Exiles lab entrance 2161 | -10/Mines | Discovered new exit (range 5) 2172 | -10/Mines | Entered Exiles 2237 | -10/Exiles | Met 8R-AWN 2295 | -10/Exiles | Met EX-HEX 2368 | -10/Exiles | Met EX-BIN 2399 | -10/Exiles | Met EX-DEC 2412 | -10/Exiles | Learned location of Zion (-7) 2506 | -10/Exiles | Aligned with FarCom system 2508 | -10/Exiles | Given EX-Vault access code 2571 | -10/Exiles | Opened EX-Vault 2602 | -10/Exiles | Found Longsword +1 2608 | -10/Exiles | Found Modified TNC 2623 | -10/Exiles | Found Latent Energy Streamer 2667 | -10/Exiles | Attacked by the Exiles 2692 | -10/Exiles | Core integrity fell below 50% 2766 | -10/Exiles | Destroyed 8R-AWN 2777 | -10/Exiles | Found AS-neutralizer No. 17b 2913 | -10/Exiles | Core integrity fell below 20% 3104 | -10/Exiles | Destroyed EX-BIN 3116 | -10/Exiles | System corruption reached 10% 3217 | -10/Exiles | System corruption reached 30% 3226 | -10/Exiles | Destroyed EX-HEX 3270 | -10/Exiles | Destroyed EX-DEC 3307 | -10/Exiles | Found Deploy-a-Sentry 3586 | -10/Exiles | Discovered new exit (range 12) 3613 | -10/Exiles | Stole four prototypes: Modified TNC, Latent Energy Streamer, Longsword +1, Deploy-a-Sentry 3613 | -10/Exiles | Entered Mines 3622 | -9/Mines | Assembled infested the area 3627 | -9/Mines | Assisted by a Guerilla fighting off Assembled 3690 | -9/Mines | Destroyed 9 combat bots 3822 | -9/Mines | Discovered new exit (range 14) 3848 | -9/Mines | Destroyed by YI-UF0 with YI-UF0's Doublenader Last Messages --------------- 03740_ U-05 Engineer builds a Wall. 03741_ The unstable cave ceiling collapses. 03741_ U-05 Engineer lays Concrete. 03746_ U-05 Engineer builds a Wall. 03746_ U-05 Engineer lays Concrete. 03752_ U-05 Engineer builds a Wall. 03752_ U-05 Engineer lays Concrete. 03755_ System corrupted: Matter fused (-9). 03755_ U-05 Engineer lays Concrete. 03771_ System corrupted: Energy discharge (-124). 03786_ System corrupted: Component data lost. 03789_ U-05 Engineer lays Concrete. 03791_ U-05 Engineer destroyed. 03802_ |PVLAVYLV2C7,>5%KQ>MBFX>0% 03822_ EXIT=FOUND 03839_ System corrupted: FCS attempts to trigger Latent Energy Streamer. 03839_ System corrupted: Latent Energy Streamer misfires. 03839_ T-07 Excavator destroyed. 03842_ YI-UF0: "BOOM!" 03842_ T-07 Excavator destroyed. Map ----- +----------------------------------------------------+ | ?## ?????# * #??????? ?????????????????????? | | ## ?#### % ?????? ????????????????????? | | # # = ????? ???????????????????? | | #### #???????????????????? | | #???????????????????? | | ### #???????????????????? | | ?# ?????### #### #????????????????????? | | ?????????# ##???????#????????????????????? | | ?????????# ##?????????????????????????????? | | ?????????# ???????????????????????????????? | | ?????????? ???????????????????????????????? | | ??????????? #???????????????????????????????? | | ???????????# #???????????????????????????????? | | ???????????# #???????????????????????????????? | | ???????????# ##############??????????????????? | | ???????????# #??????????????????? | | ???????????# g #??????????????????? | | ???????????########### #??????????????????? | | ????????????????????## ##?????????????????? | | ????????????????????# = #?????????????????? | | ?????????????######### ##??? #???????????? | | ?????????????# #?# ####????????? | | ????????????# $ # #????????? | | ???????????# ###### #????????? | | ??????????? ????????# # """ #????????? | | ????????????????????# @ ##? """??????????? | | ??????????????????# #????"""??????????? | | ?????????????????# #???? ??????????? | | ?????????????????# %< ???????????????? | | ?????????????????## * #??????????????? | | ??????????????????######## #??????????????? | | ??????????????????????????#### #??????????????? | | ?????????????????????????????? #??????????????? | | ??????????????????????????????? ??????????????? | | ???????????????????????????????##?????????????? | | ??????????????????????????????????????????????? | | | | | | | | | | | | | | | | | | | | | | | | | | | | | +----------------------------------------------------+ Best States ------------- Heat Dissipation 25 Energy Generation 18 Energy Capacity 310 Matter Stores 300 Matter Capacity 300 Sight Range 16 Terrain Scan Density 10 Armor Coverage 150 Evasion (%) 55 Targeting Accuracy 5 Recoil Reduction 2 Item Schematics ----------------- None Robot Schematics ------------------ None Fabricated ------------ Nothing Alien Tech Used ----------------- None Achievements -------------- None Challenges ------------ None Game ------ Seed SapperProtonBox Manual? 0 Play Time 00:23:38 Cumulative 1018.8 hours Start 2022.04.01 @ 17:58:19 End 2022.04.01 @ 18:41:42 Sessions 3 Manual Loads 0 Difficulty Rogue Special Mode None Game No. 308 Rogue 308 Adventurer 0 Explorer 0 Win Type - Total 71 Types 44/4/8/6/4/1/2/1/1 Lore% 92 Gallery% 94 Achievement% 98 Wizard Run 0 Options --------- ASCII 0 Keyboard 1 Movement Arrows Keybinds 0 Fullscreen 1 Font 24/Smallcaps Map View 76x56 Tactical HUD 1 Map Filters NONE Filters NONE Steam 1 RUN: 297fbba0-acd1-4b13-a56c-289cb7c6d107